bitfinex/quotes_BTCUSD_20251110
["timestamp","ask_amount","ask_price","bid_price","bid_amount"]
[1762743862583,0.26572216,106280.0,106270.0,0.08372268]
[1762743863575,0.25083216,106280.0,106270.0,0.08372268]
[1762743864206,0.20907216,106280.0,106270.0,0.08372268]
[1762743864355,0.26568216,106280.0,106270.0,0.08372268]
[1762743866555,0.26661497,106280.0,106270.0,0.08372268]
[1762743866778,0.25172497,106280.0,106270.0,0.27192254]
[1762743866986,0.00693281,106280.0,106270.0,0.30554355]
[1762743867432,0.00693281,106280.0,106270.0,0.52119509]
[1762743868055,0.00693281,106280.0,106270.0,0.52166456]
[1762743868469,0.00693281,106280.0,106270.0,0.8690773]
[1762743868682,0.00693281,106280.0,106270.0,0.86954779]
[1762743869086,0.00693281,106280.0,106270.0,0.72264779]
[1762743869524,0.00693281,106280.0,106270.0,0.68269448]
[1762743869950,0.00693281,106280.0,106270.0,0.70757669]
[1762743871226,0.00693281,106280.0,106270.0,1.12092762]
[1762743871469,0.00048122,106290.0,106270.0,1.13631773]
[1762743871707,0.0002,106310.0,106300.0,0.18814675]
[1762743871921,0.02672733,106310.0,106300.0,0.28760603]
[1762743872135,0.02672733,106310.0,106300.0,0.40969456]
[1762743872349,0.00913864,106310.0,106300.0,0.31175639]
[1762743872563,0.00913864,106310.0,106300.0,0.63428603]
[1762743872789,0.00913864,106310.0,106300.0,0.78897137]
[1762743873005,0.00913864,106310.0,106300.0,0.76533892]
[1762743873835,0.00913864,106310.0,106300.0,0.73696676]
[1762743874497,0.00913864,106310.0,106300.0,0.68676217]
[1762743874714,0.00913864,106310.0,106300.0,0.69376217]
[1762743874916,0.00913864,106310.0,106300.0,0.70476217]
[1762743875117,0.19726769,106310.0,106300.0,0.70476217]
[1762743875325,0.00913864,106310.0,106300.0,0.70476217]
[1762743875755,0.19726769,106310.0,106300.0,0.70476217]
[1762743876006,0.00913864,106310.0,106300.0,0.51661664]
[1762743876204,0.00913864,106310.0,106300.0,0.66666348]
[1762743876411,0.19726769,106310.0,106300.0,0.66666348]
[1762743876563,0.19726769,106310.0,106300.0,0.47851673]
[1762743876766,0.19726769,106310.0,106300.0,0.41194355]
[1762743876977,0.02671913,106310.0,106300.0,0.2930703]
[1762743877170,0.02671956,106310.0,106300.0,0.3699396]
[1762743877380,0.00983793,106310.0,106300.0,0.34484578]
[1762743879198,0.00983793,106310.0,106300.0,0.29165648]
[1762743879614,0.00983544,106310.0,106300.0,0.34186107]
[1762743879815,0.00983544,106310.0,106300.0,0.78358416]
[1762743880017,0.00104359,106310.0,106300.0,0.37023323]
[1762743880151,0.00104359,106310.0,106300.0,1.19952132]
[1762743880360,0.00104359,106310.0,106300.0,1.16605159]
[1762743880889,0.00104359,106310.0,106300.0,0.72801438]
[1762743881106,0.00104359,106310.0,106300.0,1.14136531]
[1762743881243,0.00104359,106310.0,106300.0,1.14089495]
[1762743881447,0.00104359,106310.0,106300.0,1.14136531]
[1762743882121,0.00104359,106310.0,106300.0,1.11299315]
[1762743882323,0.00104359,106310.0,106300.0,1.04521263]
[1762743882524,0.00104359,106310.0,106300.0,0.66485303]
[1762743882734,0.18917264,106310.0,106300.0,0.66516603]
[1762743883291,0.00104359,106310.0,106300.0,0.67504853]
[1762743883979,0.00104359,106310.0,106300.0,0.65704853]
[1762743884195,0.18917264,106310.0,106300.0,0.65704853]
[1762743884627,1.63688482,106310.0,106300.0,0.05887714]
[1762743884831,1.16564169,106310.0,106300.0,0.02541545]
[1762743885012,0.64718976,106310.0,106300.0,0.000313]
[1762743885432,0.76444176,106310.0,106300.0,0.000313]
[1762743886210,0.76844176,106310.0,106300.0,0.000313]
[1762743886410,1.18179269,106310.0,106300.0,1e-08]
[1762743886783,1.17779269,106310.0,106300.0,1e-08]
[1762743887076,1.18179269,106310.0,106300.0,1e-08]
[1762743887476,1.19179269,106310.0,106300.0,1e-08]
[1762743887895,0.72672176,106310.0,106300.0,1e-08]
[1762743888062,0.73229948,106310.0,106300.0,1e-08]
[1762743888234,0.61504748,106310.0,106300.0,1e-08]
[1762743888432,0.65122976,106310.0,106300.0,1e-08]
[1762743888637,0.61504748,106310.0,106300.0,1e-08]
[1762743889285,0.65122976,106310.0,106300.0,1e-08]
[1762743889909,1.14856184,106310.0,106300.0,1e-08]
[1762743890547,1.64506084,106310.0,106300.0,1e-08]
[1762743891548,1.65506084,106310.0,106300.0,1e-08]
[1762743892713,1.64626923,106310.0,106300.0,1e-08]
[1762743892912,1.65506473,106310.0,106300.0,1e-08]
[1762743893145,1.66506472,106310.0,106300.0,1e-08]
[1762743893368,1.71707172,106310.0,106300.0,1e-08]
[1762743893808,1.71307172,106310.0,106300.0,1e-08]
[1762743894686,1.73218538,106310.0,106300.0,1e-08]
[1762743894904,1.97818538,106310.0,106300.0,1e-08]
[1762743895115,1.98618538,106310.0,106300.0,1e-08]
[1762743895549,0.18819986,106270.0,106260.0,0.05856414]
[1762743895787,0.80805684,106270.0,106260.0,0.05856414]
[1762743895992,1.15125079,106270.0,106260.0,0.05856414]
[1762743896184,1.15125079,106270.0,106260.0,0.02510245]
[1762743896340,1.16332494,106270.0,106260.0,0.02510245]
[1762743896576,1.20950722,106270.0,106260.0,0.02510245]
[1762743896755,1.20965141,106270.0,106260.0,0.02510245]
[1762743896958,1.21065141,106270.0,106260.0,0.02510245]
[1762743897212,0.58451633,106270.0,106260.0,0.02510245]
[1762743897428,0.62631633,106270.0,106260.0,0.02510245]
[1762743897627,0.62831633,106270.0,106260.0,0.02510245]
[1762743898264,0.63031633,106270.0,106260.0,0.02510245]
[1762743900410,1.04366726,106270.0,106260.0,0.02510245]
[1762743901515,0.63031633,106270.0,106260.0,0.02510245]
[1762743901743,0.18823529,106250.0,106240.0,0.02510245]
[1762743901881,0.18825301,106240.0,106230.0,0.24683337]
[1762743902096,0.20362301,106240.0,106230.0,0.05856414]
[1762743902305,0.29854112,106240.0,106230.0,0.02510245]
[1762743902665,0.25417529,106240.0,106230.0,0.02510245]
[1762743902776,0.18827073,106230.0,106220.0,0.05856414]
[1762743902983,0.26993073,106230.0,106220.0,0.05856414]
[1762743903459,0.26993073,106230.0,106220.0,0.02510245]
[1762743903873,0.26993073,106230.0,106220.0,0.02558367]
[1762743904281,0.00912,106230.0,106220.0,0.26026141]
[1762743904505,0.001,106240.0,106230.0,0.18825766]
[1762743904748,0.001,106240.0,106230.0,0.31110354]
[1762743904977,0.02353162,106240.0,106230.0,0.08627888]
[1762743905177,0.2300362,106250.0,106230.0,0.27407914]
[1762743905378,0.2300362,106250.0,106230.0,0.33216292]
[1762743905740,0.18823529,106250.0,106240.0,0.20369301]
[1762743905862,0.23003529,106250.0,106240.0,0.20369301]
[1762743906066,0.0418,106250.0,106240.0,0.20369301]
[1762743906300,0.23003529,106250.0,106240.0,0.20369301]
[1762743906701,0.23003529,106250.0,106240.0,0.26023035]
[1762743906905,0.23003529,106250.0,106240.0,0.26123035]
[1762743907114,0.21301448,106260.0,106250.0,0.18823529]
[1762743907317,0.20385985,106270.0,106250.0,0.21549529]
[1762743907518,0.20385985,106270.0,106250.0,0.24044529]
[1762743907519,0.0418,106260.0,106250.0,0.24044529]
[1762743908096,0.23001757,106260.0,106250.0,0.24044529]
[1762743908710,0.23001757,106260.0,106250.0,0.21549529]
[1762743909139,0.23001757,106260.0,106250.0,0.02826]
[1762743909529,0.23001757,106260.0,106250.0,0.02726]
[1762743909729,0.24538757,106260.0,106250.0,0.01182]
[1762743909935,0.24538757,106260.0,106250.0,0.20205529]
[1762743910536,0.0418,106260.0,106250.0,0.26251721]
[1762743910910,0.20385985,106270.0,106260.0,0.18821757]
[1762743911086,0.24565985,106270.0,106260.0,0.18821757]
[1762743911323,0.26320149,106270.0,106260.0,0.18821757]
[1762743911525,0.02379164,106270.0,106260.0,0.20365757]
[1762743911730,0.23624986,106270.0,106260.0,0.20365757]
[1762743911936,0.04805,106270.0,106260.0,0.20365757]
[1762743912199,0.00829807,106270.0,106260.0,0.20365757]
[1762743912612,0.05009807,106270.0,106260.0,0.22860757]
[1762743913110,0.05009807,106270.0,106260.0,0.20412811]
[1762743913630,0.25366793,106270.0,106250.0,0.29557604]
[1762743913830,0.25166793,106270.0,106250.0,0.25055412]
[1762743914037,0.25166793,106270.0,106260.0,0.19021757]
[1762743914237,0.26923263,106270.0,106260.0,0.002]
[1762743914434,0.28460263,106270.0,106260.0,0.19021757]
[1762743914664,0.28460263,106270.0,106260.0,0.002]
[1762743915084,0.32078491,106270.0,106260.0,0.002]
[1762743915292,0.02386277,106270.0,106260.0,0.23060757]
[1762743915538,0.30812761,106270.0,106260.0,0.002]
[1762743915743,0.30812761,106270.0,106260.0,0.02707865]
[1762743915744,0.26703793,106270.0,106260.0,0.02707865]
[1762743915990,0.25166793,106270.0,106260.0,0.02707865]
[1762743916818,0.26703793,106270.0,106260.0,0.02707865]
[1762743917021,4.807e-05,106270.0,106260.0,0.60677812]
[1762743917237,4.807e-05,106270.0,106260.0,1.07746186]
[1762743917445,4.807e-05,106270.0,106260.0,1.04446972]
[1762743917646,4.807e-05,106270.0,106260.0,1.04400017]
[1762743917847,4.807e-05,106270.0,106260.0,1.04447071]
[1762743917982,4.807e-05,106270.0,106260.0,1.04400017]
[1762743918188,0.00104807,106270.0,106260.0,1.06046972]
[1762743918396,0.00104807,106270.0,106260.0,0.96937361]
[1762743918571,0.00204807,106270.0,106260.0,0.68228871]
[1762743918774,0.00204807,106270.0,106260.0,0.98137361]
[1762743921755,0.00204807,106270.0,106260.0,0.68228871]
[1762743921971,0.00204807,106270.0,106260.0,0.78039044]
[1762743922414,0.22002291,106270.0,106260.0,0.11218137]
[1762743922629,0.21186793,106270.0,106260.0,0.06150624]
[1762743922839,0.21186793,106270.0,106260.0,0.05313397]
[1762743922840,0.29256291,106270.0,106260.0,0.05313397]
[1762743923068,0.56812283,106270.0,106260.0,0.05313397]
[1762743923275,0.66133443,106270.0,106260.0,0.05313397]
[1762743923478,0.28661879,106270.0,106260.0,0.05313397]
[1762743923883,0.28561879,106270.0,106260.0,0.03713397]
[1762743924324,0.28561879,106270.0,106260.0,0.014]
[1762743924564,0.28461879,106270.0,106260.0,0.002]
[1762743924769,0.28461879,106270.0,106260.0,0.004]
[1762743924770,0.70069303,106270.0,106260.0,0.004]
[1762743925189,0.61988597,106270.0,106260.0,0.004]
[1762743925394,0.32080107,106270.0,106260.0,0.004]
[1762743926865,0.32080107,106270.0,106260.0,0.02913397]
[1762743929323,0.30543107,106270.0,106260.0,0.02913397]
[1762743929716,0.32080107,106270.0,106260.0,0.02913397]
[1762743931086,0.61988597,106270.0,106260.0,0.02913397]
[1762743931294,1.02369303,106270.0,106260.0,0.02913397]
[1762743931499,0.64380107,106270.0,106260.0,0.02913397]
[1762743932095,0.64380107,106270.0,106260.0,0.02713397]
[1762743932298,0.64380107,106270.0,106260.0,0.02513397]
[1762743932842,0.64380107,106270.0,106260.0,0.02613397]
[1762743933455,0.94288597,106270.0,106260.0,0.02613397]
[1762743933662,1.46337497,106270.0,106260.0,0.001]
[1762743933863,1.47217237,106270.0,106260.0,0.001]
[1762743934282,0.22439985,106260.0,106250.0,0.02513397]
[1762743934491,0.8948261,106260.0,106250.0,0.02513397]
[1762743934710,0.8948261,106260.0,106240.0,0.03350624]
[1762743934711,0.22441757,106250.0,106240.0,0.03350624]
[1762743934977,0.61360382,106250.0,106240.0,0.03350624]
[1762743935592,0.31451892,106250.0,106240.0,0.03350624]
[1762743936651,0.31551892,106250.0,106240.0,0.03350624]
[1762743940232,0.29791757,106250.0,106240.0,0.03350624]
[1762743941396,0.18827073,106230.0,106220.0,0.08418152]
[1762743941604,0.25452073,106230.0,106220.0,0.22179469]
[1762743942085,0.06625,106230.0,106220.0,0.22179469]
[1762743942297,0.25452073,106230.0,106220.0,0.22226541]
[1762743942514,0.26989073,106230.0,106220.0,0.03350624]
[1762743942724,0.26993877,106230.0,106220.0,0.03550624]
[1762743944185,0.26993877,106230.0,106220.0,0.03850624]
[1762743945015,0.31575795,106230.0,106220.0,0.03850624]
[1762743945222,0.26993877,106230.0,106220.0,0.005]
[1762743945432,0.30612105,106230.0,106220.0,0.005]
[1762743945638,0.60520595,106230.0,106220.0,0.005]
[1762743945845,1.09921595,106230.0,106220.0,0.005]
[1762743947088,1.09921595,106230.0,106220.0,0.002]
[1762743947295,0.22448846,106210.0,106200.0,0.03350624]
[1762743947511,0.28161846,106210.0,106200.0,0.03350624]
[1762743947712,0.29698846,106210.0,106200.0,0.03350624]
[1762743948312,0.29698846,106210.0,106190.0,0.05067544]
[1762743948313,0.18832391,106200.0,106190.0,0.08418168]
[1762743948538,0.24230439,106200.0,106190.0,0.08371083]
[1762743948746,0.21876391,106200.0,106190.0,0.08371083]
[1762743950413,0.21876391,106200.0,106190.0,0.27505248]
[1762743950619,0.21876391,106200.0,106190.0,0.08871083]
[1762743951854,0.25494619,106200.0,106190.0,0.08871083]
[1762743953839,0.20369391,106200.0,106190.0,0.12873475]
[1762743954042,0.20369391,106200.0,106190.0,0.08871083]
[1762743954043,0.59609109,106200.0,106190.0,0.08871083]
[1762743954245,0.29700619,106200.0,106190.0,0.08871083]
[1762743954421,0.29700619,106200.0,106190.0,0.03850624]
[1762743954845,0.29700619,106200.0,106190.0,0.03650624]
[1762743955231,0.29800619,106200.0,106190.0,0.03650624]
[1762743956058,0.26182391,106200.0,106190.0,0.22484789]
[1762743956234,0.26182391,106200.0,106190.0,0.22184789]
[1762743959047,0.22006391,106200.0,106190.0,0.22184789]
[1762743959223,0.26182391,106200.0,106190.0,0.27205248]
[1762743960209,0.0735,106200.0,106190.0,0.27205248]
[1762743960400,0.04276,106200.0,106190.0,0.28855248]
[1762743960625,0.001,106200.0,106190.0,0.31292248]
[1762743960827,0.04276,106200.0,106190.0,0.36623464]
[1762743961253,0.18832391,106200.0,106190.0,0.27941624]
[1762743961489,0.04176,106200.0,106190.0,0.27941624]
[1762743961703,0.28436439,106200.0,106190.0,0.05120459]
[1762743961909,0.26082391,106200.0,106190.0,0.08475236]
[1762743962647,0.26082391,106200.0,106190.0,0.27309401]
[1762743962851,0.26082391,106200.0,106190.0,0.08475236]
[1762743964325,0.26082391,106200.0,106190.0,0.05120459]
[1762743964757,0.26082391,106200.0,106190.0,0.08478628]
[1762743965385,0.59609109,106200.0,106190.0,0.08478628]
[1762743965586,1.27750813,106200.0,106190.0,0.03458169]
[1762743965738,1.03179813,106200.0,106190.0,0.03458169]
[1762743965956,0.05377132,106200.0,106190.0,0.22292334]
[1762743966154,0.23008391,106200.0,106190.0,0.10967014]
[1762743966361,0.24545391,106200.0,106190.0,0.06343459]
[1762743966970,0.27841783,106200.0,106190.0,0.001]
[1762743967171,0.31460011,106200.0,106190.0,0.001]
[1762743967735,0.61368501,106200.0,106190.0,0.001]
[1762743967930,0.6938843,106200.0,106190.0,0.001]
[1762743968341,0.31460011,106200.0,106190.0,0.001]
[1762743968564,0.61368501,106200.0,106190.0,0.001]
[1762743968996,0.22452393,106190.0,106180.0,0.0004]
[1762743969196,0.57819275,106190.0,106180.0,0.0004]
[1762743969754,0.98212042,106190.0,106180.0,0.0004]
[1762743970178,0.90124076,106190.0,106180.0,0.0004]
[1762743970399,1.12998776,106190.0,106180.0,0.0014]
[1762743970654,1.14878428,106190.0,106180.0,1e-08]
[1762743970825,1.65613366,106180.0,106170.0,0.00296315]
[1762743971041,2.04531248,106180.0,106170.0,0.00296315]
[1762743971747,1.62035848,106180.0,106170.0,0.00296315]
[1762743972610,0.18839487,106160.0,106150.0,0.03361067]
[1762743972891,0.2245949,106150.0,106140.0,0.03361067]
[1762743973102,0.56576372,106150.0,106140.0,0.03361067]
[1762743973311,0.22461265,106140.0,106130.0,0.08381526]
[1762743973514,0.31470657,106140.0,106130.0,0.08381526]
[1762743973724,0.03294714,106140.0,106130.0,0.25515271]
[1762743973928,0.24776751,106140.0,106130.0,0.31494601]
[1762743974137,0.05933714,106140.0,106130.0,0.31495611]
[1762743974340,0.24776751,106140.0,106130.0,0.31542723]
[1762743974547,0.05933714,106140.0,106130.0,0.31495611]
[1762743974753,0.24776751,106140.0,106130.0,0.25610505]
[1762743974956,0.24776751,106140.0,106130.0,0.25563393]
[1762743975168,0.24776751,106140.0,106130.0,0.25763393]
[1762743975604,0.05933714,106140.0,106130.0,0.25763393]
[1762743975814,0.01757714,106140.0,106130.0,0.66823949]
[1762743976039,0.05933714,106140.0,106130.0,0.71977537]
[1762743976244,0.23017262,106150.0,106140.0,0.18842333]
[1762743976463,0.25685666,106150.0,106140.0,0.08391245]
[1762743976697,0.25685666,106150.0,106140.0,0.23849535]
[1762743976915,0.02668404,106150.0,106140.0,0.23849535]
[1762743977125,0.27222666,106150.0,106140.0,0.03356498]
[1762743977745,0.27222666,106150.0,106140.0,0.05006498]
[1762743978523,0.27222666,106150.0,106140.0,0.23919617]
[1762743978727,0.27222666,106150.0,106140.0,0.24019617]
[1762743979135,0.06844404,106150.0,106140.0,0.24019617]
[1762743979336,0.02668404,106150.0,106140.0,0.26456617]
[1762743979562,0.06844404,106150.0,106140.0,0.26456617]
[1762743979936,0.05932404,106150.0,106140.0,0.26456617]
[1762743980138,0.01756404,106150.0,106140.0,0.26456617]
[1762743980338,0.04176,106150.0,106140.0,0.31491364]
[1762743980969,0.23017262,106150.0,106140.0,0.31491364]
[1762743981292,0.27221852,106150.0,106140.0,0.0352658]
[1762743981528,0.28758852,106150.0,106140.0,0.0352658]
[1762743982593,0.3237708,106150.0,106140.0,0.0352658]
[1762743982807,0.37498749,106150.0,106140.0,0.00170082]
[1762743984512,0.84971649,106150.0,106140.0,0.00170082]
[1762743985134,0.5271378,106150.0,106140.0,0.00170082]
[1762743985360,0.49485916,106150.0,106140.0,0.00170082]
[1762743985798,0.32377316,106150.0,106140.0,0.00170082]
[1762743988573,0.64677316,106150.0,106140.0,0.00170082]
[1762743988793,1.74458701,106150.0,106140.0,0.00170082]
[1762743989219,0.58964316,106150.0,106140.0,0.00170082]
[1762743989431,0.60501316,106150.0,106140.0,0.00070082]
[1762743989639,0.32377316,106150.0,106140.0,0.00070082]
[1762743990286,0.18843037,106140.0,106130.0,0.17962936]
[1762743990518,0.18844812,106130.0,106120.0,0.22342956]
[1762743990737,0.24776638,106130.0,106120.0,0.18934728]
[1762743990946,0.24776638,106130.0,106120.0,0.0008814]
[1762743991158,0.26313541,106130.0,106120.0,0.0008814]
[1762743991363,0.27850541,106130.0,106120.0,0.00134877]
[1762743991794,0.26313541,106130.0,106120.0,0.18981465]
[1762743992058,0.07468729,106130.0,106120.0,0.23779103]
[1762743992248,0.28669142,106130.0,106120.0,0.23826219]
[1762743992489,0.26313541,106130.0,106120.0,0.23779103]
[1762743993326,0.26313541,106130.0,106120.0,0.23979103]
[1762743993531,0.26313541,106130.0,106120.0,0.19481465]
[1762743993946,0.07468729,106130.0,106120.0,0.19481465]
[1762743994156,0.0982433,106130.0,106120.0,0.19481465]
[1762743995008,0.0982433,106130.0,106120.0,0.19528581]
[1762743995219,0.01755729,106130.0,106120.0,0.28544884]
[1762743995423,0.20600541,106130.0,106120.0,0.23519581]
[1762743995643,0.01755729,106130.0,106120.0,0.23472465]
[1762743996149,0.01755729,106130.0,106120.0,0.23519581]
[1762743996361,0.01755729,106130.0,106120.0,0.23472465]
[1762743997235,0.01755729,106130.0,106120.0,0.26828963]
[1762743998414,0.01755729,106130.0,106120.0,0.78081321]
[1762743998628,0.01755729,106130.0,106120.0,1.15416068]
[1762743999027,0.01755729,106130.0,106120.0,1.1495628]
[1762743999222,0.01755729,106130.0,106120.0,1.12106686]
[1762743999474,0.01755729,106130.0,106120.0,1.1205957]
[1762743999675,0.01755729,106130.0,106120.0,1.12106686]
[1762744000091,0.19753382,106150.0,106140.0,0.18843037]
[1762744000324,0.2151347,106150.0,106140.0,0.18843037]
[1762744000502,0.2151347,106150.0,106140.0,0.20367037]
[1762744001180,0.2161335,106150.0,106140.0,0.20367037]
[1762744001876,0.02772088,106150.0,106140.0,0.20367037]
[1762744002104,0.2161335,106150.0,106140.0,0.20414144]
[1762744002346,0.2161335,106150.0,106140.0,0.20367037]
[1762744002789,0.18843037,106140.0,106130.0,0.62246106]
[1762744003004,0.20603125,106140.0,106130.0,0.62246106]
[1762744003232,0.20603125,106140.0,106130.0,0.2380402]
[1762744003483,0.20603125,106140.0,106130.0,0.20392179]
[1762744003721,0.32042464,106140.0,106130.0,0.00070479]
[1762744003938,0.27853125,106140.0,106130.0,0.00023367]
[1762744004373,0.26316125,106140.0,106130.0,0.18868179]
[1762744004596,0.01760088,106140.0,106130.0,0.27227346]
[1762744004856,0.01760088,106140.0,106130.0,0.7743496]
[1762744005079,0.01760088,106140.0,106130.0,0.35992775]
[1762744005307,0.01760088,106140.0,106130.0,0.36039887]
[1762744005528,0.05937043,106150.0,106140.0,0.18843037]
[1762744005745,0.01761043,106150.0,106140.0,0.28322329]
[1762744005981,0.01761043,106150.0,106140.0,0.22834037]
[1762744006860,0.20602305,106150.0,106140.0,0.20414144]
[1762744007079,0.20602305,106150.0,106140.0,0.20367037]
[1762744007307,0.01761043,106150.0,106140.0,0.20367037]
[1762744007522,0.01761043,106150.0,106140.0,0.22834037]
[1762744007931,0.01761043,106150.0,106140.0,0.26198766]
[1762744008364,0.01761043,106150.0,106140.0,0.32170533]
[1762744008589,0.01761043,106150.0,106140.0,0.23778873]
[1762744008809,0.20602305,106150.0,106140.0,0.04935836]
[1762744009025,0.26031462,106150.0,106140.0,0.03364729]
[1762744009242,0.26031462,106150.0,106130.0,0.27314603]
[1762744009243,0.18843037,106140.0,106130.0,0.27314603]
[1762744009459,0.22959459,106140.0,106130.0,0.27267491]
[1762744009673,0.01761043,106140.0,106130.0,0.28933491]
[1762744009931,0.2060408,106140.0,106130.0,0.28980603]
[1762744010168,0.2060408,106140.0,106130.0,0.10088843]
[1762744010382,0.2060408,106140.0,106130.0,0.10288843]
[1762744010595,0.2060408,106140.0,106130.0,0.07024114]
[1762744010806,0.2214108,106140.0,106130.0,0.05358114]
[1762744011019,0.2214108,106140.0,106130.0,0.24202926]
[1762744011505,0.2214108,106140.0,106130.0,0.05358114]
[1762744012131,0.2060408,106140.0,106130.0,0.25740926]
[1762744012574,0.05937043,106140.0,106130.0,0.33564195]
[1762744012780,0.04176,106140.0,106130.0,0.23110291]
[1762744012992,0.05939373,106140.0,106130.0,0.28164307]
[1762744013403,0.23019037,106140.0,106130.0,0.28164307]
[1762744013608,0.23019037,106140.0,106130.0,0.28117195]
[1762744013825,0.23019037,106140.0,106130.0,0.06915383]
[1762744014035,0.27842628,106140.0,106130.0,0.05377383]
[1762744014241,0.31460856,106140.0,106130.0,0.05377383]
[1762744014605,0.29923856,106140.0,106130.0,0.08748073]
[1762744014813,0.31460856,106140.0,106130.0,0.05377383]
[1762744015024,0.31460856,106140.0,106130.0,0.08748152]
[1762744018521,0.29923856,106140.0,106130.0,0.27592964]
[1762744018722,0.29923856,106140.0,106130.0,0.05377383]
[1762744019361,0.31460856,106140.0,106130.0,0.05377383]
[1762744019810,0.36491068,106140.0,106130.0,0.05377383]
[1762744020201,0.36491068,106140.0,106130.0,0.08749332]
[1762744020202,0.31460856,106140.0,106130.0,0.08749332]
[1762744021527,0.31460856,106140.0,106130.0,0.08649332]
[1762744021937,0.31460856,106140.0,106130.0,0.03595316]
[1762744022357,0.31460856,106140.0,106130.0,0.03395316]
[1762744022560,0.72903041,106140.0,106130.0,0.03395316]
[1762744022962,0.31460856,106140.0,106130.0,0.03395316]
[1762744023346,0.72903041,106140.0,106130.0,0.03395316]
[1762744023706,1.05203041,106140.0,106130.0,0.03395316]
[1762744023888,1.05203041,106140.0,106130.0,0.00023367]
[1762744024246,1.05203041,106140.0,106130.0,0.03395316]
[1762744024374,1.05203041,106140.0,106130.0,0.00023367]
[1762744024578,0.63760856,106140.0,106130.0,0.00023367]
[1762744024777,0.63960856,106140.0,106130.0,0.00023367]
[1762744024990,0.63960856,106140.0,106130.0,0.03395316]
[1762744025199,0.58021265,106140.0,106130.0,0.03395316]
[1762744025397,0.24738037,106140.0,106130.0,0.10952185]
[1762744025596,0.23215037,106140.0,106130.0,0.27963048]
[1762744025931,0.23215037,106140.0,106130.0,0.25460195]
[1762744025932,0.26833265,106140.0,106130.0,0.25460195]
[1762744026134,0.26933265,106140.0,106130.0,0.25460195]
[1762744026314,0.26933265,106140.0,106130.0,0.06615383]
[1762744027119,0.22761265,106140.0,106130.0,0.25460195]
[1762744027441,0.23315037,106140.0,106130.0,0.25460195]
[1762744027852,0.04472,106140.0,106130.0,0.27817195]
[1762744028055,0.23315037,106140.0,106130.0,0.27817195]
[1762744028216,0.04472,106140.0,106130.0,0.27817195]
[1762744028423,0.23315037,106140.0,106130.0,0.31189642]
[1762744028612,0.23315037,106140.0,106130.0,0.28832642]
[1762744028821,0.04472,106140.0,106130.0,0.28832642]
[1762744029041,0.24838037,106140.0,106130.0,0.28832642]
[1762744029249,0.26375037,106140.0,106130.0,0.0844983]
[1762744030117,0.26375037,106140.0,106130.0,0.03395814]
[1762744030778,0.26375037,106140.0,106130.0,0.0844983]
[1762744031201,0.24838037,106140.0,106130.0,0.22240626]
[1762744031399,0.24838037,106140.0,106130.0,0.03395814]
[1762744032224,0.26375037,106140.0,106130.0,0.03395814]
[1762744034523,0.003,106140.0,106130.0,0.23778626]
[1762744034727,0.04472,106140.0,106130.0,0.3091706]
[1762744034898,0.23315037,106140.0,106130.0,0.3091706]
[1762744035103,0.23315037,106140.0,106130.0,0.23778626]
[1762744035315,0.23015037,106140.0,106130.0,0.23778626]
[1762744035526,0.002,106140.0,106130.0,0.23778626]
[1762744035787,0.002,106140.0,106130.0,0.31189642]
[1762744035788,0.003,106140.0,106130.0,0.31189642]
[1762744036025,0.04372,106140.0,106130.0,0.3767448]
[1762744036224,0.24738037,106140.0,106130.0,0.05077383]
[1762744036438,0.24738037,106140.0,106130.0,0.03394686]
[1762744036935,0.24738037,106140.0,106130.0,0.22239498]
[1762744036936,0.24538037,106140.0,106130.0,0.22239498]
[1762744037381,0.24538037,106140.0,106130.0,0.03394686]
[1762744038069,0.24538037,106140.0,106130.0,0.22239498]
[1762744038278,0.24358912,106160.0,106140.0,0.18843037]
[1762744038279,0.25848814,106160.0,106140.0,0.18843037]
[1762744038491,0.04172,106150.0,106140.0,0.23752729]
[1762744038701,0.20693586,106160.0,106150.0,0.02787]
[1762744038906,0.26630322,106160.0,106150.0,0.21628262]
[1762744039119,0.3024855,106160.0,106150.0,0.21628262]
[1762744039326,0.3024855,106160.0,106150.0,0.02787]
[1762744039534,0.3177155,106160.0,106150.0,0.21628262]
[1762744039742,0.3177155,106160.0,106150.0,0.20090262]
[1762744039951,0.3197155,106160.0,106150.0,0.01249]
[1762744040162,0.3237155,106160.0,106150.0,0.01249]
[1762744040571,0.18841262,106150.0,106140.0,0.25867477]
[1762744040780,0.18841262,106150.0,106140.0,0.2582037]
[1762744040993,0.30620814,106160.0,106140.0,0.2735837]
[1762744041199,0.30848586,106160.0,106140.0,0.27405477]
[1762744041408,0.30848586,106160.0,106150.0,0.18841262]
[1762744041614,0.30248586,106160.0,106140.0,0.27405477]
[1762744041793,0.18841262,106150.0,106140.0,0.27405477]
[1762744042029,0.18941262,106150.0,106140.0,0.2735837]
[1762744042439,0.18841262,106150.0,106140.0,0.2735837]
[1762744042641,0.28683814,106160.0,106140.0,0.2735837]
[1762744042843,0.30448657,106160.0,106140.0,0.27405477]
[1762744042960,0.002,106150.0,106140.0,0.27405477]
[1762744043191,0.19141262,106150.0,106140.0,0.27405477]
[1762744043401,0.19041262,106150.0,106140.0,0.2735837]
[1762744043610,0.18841262,106150.0,106140.0,0.2735837]
[1762744044018,0.28883814,106160.0,106140.0,0.27405477]
[1762744044226,0.30648758,106160.0,106140.0,0.32459493]
[1762744044440,0.30248758,106160.0,106140.0,0.32459493]
[1762744044762,0.19041262,106150.0,106140.0,0.38509136]
[1762744044962,0.002,106150.0,106140.0,0.38462029]
[1762744045771,0.28683814,106160.0,106150.0,0.18841262]
[1762744045973,0.3044865,106160.0,106140.0,0.38509136]
[1762744046184,0.3064865,106160.0,106150.0,0.18841262]
[1762744046405,0.18841262,106150.0,106140.0,0.32459493]
[1762744046649,0.001,106150.0,106140.0,0.64533663]
[1762744046889,0.001,106150.0,106140.0,0.62777971]
[1762744047112,0.001,106150.0,106140.0,0.92956074]
[1762744047323,0.001,106150.0,106140.0,0.92323955]
[1762744047526,0.00625,106190.0,106180.0,0.18835938]
[1762744047748,0.06561077,106190.0,106180.0,0.24219303]
[1762744047970,0.06561077,106190.0,106180.0,0.26519303]
[1762744048661,0.06761077,106190.0,106180.0,0.26533734]
[1762744048893,0.06561077,106190.0,106180.0,0.26533734]
[1762744049391,0.25895242,106190.0,106180.0,0.05397796]
[1762744049600,0.25895242,106190.0,106180.0,0.01630431]
[1762744049803,0.25495242,106190.0,106180.0,0.01630431]
[1762744050216,0.25695242,106190.0,106180.0,0.01630431]
[1762744050863,0.25695242,106190.0,106180.0,0.03930431]
[1762744051471,0.25695242,106190.0,106180.0,0.22766369]
[1762744052027,0.25695242,106190.0,106180.0,0.03930431]
[1762744053781,0.25695242,106190.0,106180.0,0.22766369]
[1762744053967,0.04472,106190.0,106180.0,0.26140455]
[1762744054141,0.23306165,106190.0,106180.0,0.03930431]
[1762744054351,0.23306165,106190.0,106180.0,0.22766369]
[1762744054533,0.23306165,106190.0,106180.0,0.03930431]
[1762744055608,0.23306165,106190.0,106180.0,0.01630431]
[1762744055843,0.23306165,106190.0,106180.0,0.20466369]